bitfinex-derivatives/quotes_BTCF0:USTF0_20250921
["timestamp","ask_amount","ask_price","bid_price","bid_amount"]
[1758455408658,0.0346,115740.0,115730.0,0.38201]
[1758455408953,0.81474,115740.0,115730.0,0.3608]
[1758455410147,0.81574,115740.0,115730.0,0.3618]
[1758455416153,0.81574,115740.0,115730.0,0.001]
[1758455416357,1.17654,115740.0,115730.0,0.001]
[1758455424563,0.81574,115740.0,115730.0,0.001]
[1758455424765,1.17654,115740.0,115730.0,0.001]
[1758455427566,0.81574,115740.0,115730.0,0.001]
[1758455427764,1.17654,115740.0,115730.0,0.001]
[1758455428965,1.20121894,115740.0,115730.0,0.001]
[1758455435364,0.03487,115730.0,115720.0,0.0001]
[1758455435565,0.03487,115720.0,115710.0,0.38255]
[1758455435765,0.81505,115720.0,115710.0,0.38245]
[1758455436970,0.81605,115720.0,115710.0,0.38945]
[1758455437469,0.81605,115720.0,115710.0,0.39245]
[1758455440170,0.8841529,115720.0,115710.0,0.39245]
[1758455457584,0.1040729,115720.0,115710.0,0.39245]
[1758455457785,0.8841929,115720.0,115710.0,0.39245]
[1758455458889,0.8841929,115720.0,115710.0,0.03165]
[1758455459186,0.8841929,115720.0,115710.0,0.39245]
[1758455461491,0.1040729,115720.0,115710.0,0.39245]
[1758455461787,0.8841929,115720.0,115710.0,0.39245]
[1758455464892,0.8841929,115720.0,115710.0,0.03165]
[1758455465092,0.8841929,115720.0,115710.0,0.39245]
[1758455471401,0.8841929,115720.0,115710.0,0.03165]
[1758455471700,0.8841929,115720.0,115710.0,0.39245]
[1758455472300,0.8841929,115720.0,115710.0,0.03165]
[1758455472600,0.8841929,115720.0,115710.0,0.39245]
[1758455475906,0.8841929,115720.0,115710.0,0.03165]
[1758455476105,0.8841929,115720.0,115710.0,0.39245]
[1758455480506,0.1040729,115720.0,115710.0,0.39245]
[1758455480707,0.8841929,115720.0,115710.0,0.39245]
[1758455486216,0.1040729,115720.0,115710.0,0.39245]
[1758455486414,0.8841929,115720.0,115710.0,0.39245]
[1758455488314,0.8841929,115720.0,115710.0,0.03165]
[1758455488516,0.8841929,115720.0,115710.0,0.39245]
[1758455492414,0.8841929,115720.0,115710.0,0.03165]
[1758455492815,0.8841929,115720.0,115710.0,0.39245]
[1758455501518,0.8841929,115720.0,115710.0,0.03165]
[1758455501718,0.8841929,115720.0,115710.0,0.39245]
[1758455503531,0.1040729,115720.0,115710.0,0.39245]
[1758455503732,0.8851529,115720.0,115710.0,0.39245]
[1758455508526,0.8851529,115720.0,115710.0,0.03165]
[1758455508726,0.8851529,115720.0,115710.0,0.39245]
[1758455509533,0.8851529,115720.0,115710.0,0.03165]
[1758455509733,0.8851529,115720.0,115710.0,0.39245]
[1758455519929,0.8851529,115720.0,115710.0,0.01]
[1758455521030,1.4959529,115720.0,115700.0,0.3609]
[1758455521237,0.03627,115710.0,115700.0,0.3609]
[1758455521534,0.05684727,115710.0,115700.0,0.3608]
[1758455522236,0.05684727,115710.0,115690.0,0.3609]
[1758455522237,0.03627,115700.0,115690.0,0.38269]
[1758455522434,0.81761,115700.0,115690.0,0.38259]
[1758455525241,0.81961,115700.0,115690.0,0.39059]
[1758455526245,0.82061,115700.0,115690.0,0.39659]
[1758455530158,0.03937,115700.0,115690.0,0.39659]
[1758455530359,0.61029,115700.0,115690.0,0.39659]
[1758455531058,0.82057,115700.0,115690.0,0.39659]
[1758455532558,0.03937,115700.0,115690.0,0.39659]
[1758455532761,0.82077,115700.0,115690.0,0.39659]
[1758455533857,0.82073,115700.0,115690.0,0.39659]
[1758455535254,0.03937,115700.0,115690.0,0.39659]
[1758455535458,0.82077,115700.0,115690.0,0.39659]
[1758455553777,0.03937,115700.0,115690.0,0.39659]
[1758455553979,0.81365,115700.0,115690.0,0.39659]
[1758455561982,0.81365,115700.0,115690.0,0.03579]
[1758455562285,0.81365,115700.0,115690.0,0.39659]
[1758455577398,0.81365,115700.0,115690.0,0.03579]
[1758455577696,0.81365,115700.0,115690.0,0.39659]
[1758455589408,0.81365,115700.0,115690.0,0.03579]
[1758455589608,0.81365,115700.0,115690.0,0.39659]
[1758455591509,0.81365,115700.0,115690.0,0.03579]
[1758455591710,0.81365,115700.0,115690.0,0.39659]
[1758455599617,0.81365,115700.0,115690.0,0.03579]
[1758455599822,0.81365,115700.0,115690.0,0.39659]
[1758455610032,0.03937,115700.0,115690.0,0.39659]
[1758455610226,0.0031,115700.0,115690.0,0.64659]
[1758455610430,0.7861,115700.0,115690.0,0.64659]
[1758455611126,0.7861,115700.0,115690.0,0.75546601]
[1758455611532,0.7861,115700.0,115690.0,0.64659]
[1758455612034,0.80723,115700.0,115690.0,0.64659]
[1758455615238,0.80723,115700.0,115690.0,0.66409006]
[1758455617630,0.82039,115700.0,115690.0,0.66409006]
[1758455619441,0.82039,115700.0,115690.0,0.41409006]
[1758455620740,0.82039,115700.0,115690.0,0.77489006]
[1758455623630,0.82039,115700.0,115690.0,0.05329006]
[1758455623829,0.82039,115700.0,115690.0,0.77489006]
[1758455624442,0.03739,115700.0,115690.0,0.77489006]
[1758455624641,0.56491,115700.0,115690.0,0.77489006]
[1758455626744,0.03739,115700.0,115690.0,0.77489006]
[1758455629345,0.03739,115700.0,115690.0,0.88376607]
[1758455630144,0.03739,115700.0,115690.0,0.77489006]
[1758455631247,0.0031,115700.0,115690.0,0.77489006]
[1758455632746,0.02423,115700.0,115690.0,0.77489006]
[1758455633346,0.02423,115700.0,115690.0,0.05329006]
[1758455633546,0.02423,115700.0,115690.0,0.77489006]
[1758455635950,0.02423,115700.0,115690.0,0.05329006]
[1758455636152,0.02423,115700.0,115690.0,0.77489006]
[1758455638949,0.0031,115700.0,115690.0,0.77489006]
[1758455641556,0.0031,115700.0,115690.0,0.88376607]
[1758455644456,0.0031,115700.0,115690.0,0.16216607]
[1758455644666,0.0031,115700.0,115690.0,0.88376607]
[1758455645260,0.02642,115700.0,115690.0,0.88376607]
[1758455647159,0.03978,115700.0,115690.0,0.88376607]
[1758455652964,0.03978,115700.0,115690.0,0.16216607]
[1758455653163,0.02642,115700.0,115690.0,0.88376607]
[1758455656964,0.02642,115700.0,115690.0,0.16216607]
[1758455657164,0.02642,115700.0,115690.0,0.88376607]
[1758455668385,0.02642,115700.0,115690.0,0.16216607]
[1758455668585,0.02642,115700.0,115690.0,0.88376607]
[1758455671383,0.02642,115700.0,115690.0,0.16216607]
[1758455671590,0.02642,115700.0,115690.0,0.88376607]
[1758455672189,0.0031,115700.0,115690.0,0.88376607]
[1758455689703,0.0031,115700.0,115690.0,0.77489006]
[1758455691403,0.0031,115700.0,115690.0,0.88375085]
[1758455692506,0.0031,115700.0,115690.0,1.13375085]
[1758455694706,0.0031,115700.0,115690.0,1.91459085]
[1758455697900,0.0031,115700.0,115690.0,1.13375085]
[1758455698201,0.0031,115700.0,115690.0,1.91455085]
[1758455699409,0.0031,115700.0,115690.0,1.80569006]
[1758455700108,0.0031,115700.0,115690.0,1.02489006]
[1758455700311,0.0031,115700.0,115690.0,1.80565006]
[1758455702305,0.0031,115700.0,115690.0,1.02489006]
[1758455702510,0.0031,115700.0,115690.0,1.80561006]
[1758455703313,0.0031,115700.0,115690.0,1.08401006]
[1758455703516,0.0031,115700.0,115690.0,1.80561006]
[1758455704313,0.0031,115700.0,115690.0,1.80573006]
[1758455704710,0.0031,115700.0,115690.0,1.91459085]
[1758455709616,0.0031,115700.0,115690.0,1.91447085]
[1758455715317,0.0031,115700.0,115690.0,1.55367085]
[1758455715615,0.0031,115700.0,115690.0,1.91447085]
[1758455716418,0.0031,115700.0,115690.0,1.13375085]
[1758455716621,0.0031,115700.0,115690.0,1.91447085]
[1758455732932,0.0031,115700.0,115690.0,1.80561006]
[1758455735234,0.0031,115700.0,115690.0,1.8057781]
[1758455739333,0.0031,115700.0,115690.0,1.5557781]
[1758455743338,0.0031,115700.0,115690.0,0.8341781]
[1758455743638,0.0031,115700.0,115690.0,1.5557781]
[1758455749141,0.0031,115700.0,115690.0,1.66466771]
[1758455755946,0.0031,115700.0,115690.0,0.94306771]
[1758455756144,0.0031,115700.0,115690.0,1.66466771]
[1758455758447,0.0031,115700.0,115690.0,0.94306771]
[1758455758640,0.0031,115700.0,115690.0,1.66466771]
[1758455758945,0.0031,115700.0,115690.0,0.94306771]
[1758455759148,0.0031,115700.0,115690.0,1.66466771]
[1758455759346,0.0031,115700.0,115690.0,1.5557781]
[1758455771456,0.0031,115700.0,115690.0,1.5556581]
[1758455773556,0.0031,115700.0,115690.0,0.7750581]
[1758455773761,0.0031,115700.0,115690.0,1.5556581]
[1758455775052,0.0031,115700.0,115690.0,0.7750581]
[1758455775454,0.0031,115700.0,115690.0,1.5556581]
[1758455776157,0.0031,115700.0,115690.0,0.7750581]
[1758455776458,0.0031,115700.0,115690.0,1.5556581]
[1758455791482,0.0031,115700.0,115690.0,1.5556181]
[1758455797284,0.0031,115700.0,115690.0,0.88395634]
[1758455797489,0.0031,115700.0,115690.0,1.66451634]
[1758455804493,0.0031,115700.0,115690.0,1.74230035]
[1758455804792,0.0031,115700.0,115690.0,1.63340211]
[1758455806596,0.0031,115700.0,115690.0,1.5556181]
[1758455809500,0.0031,115700.0,115690.0,1.66451634]
[1758455812199,0.0031,115700.0,115690.0,1.5556181]
[1758455815700,0.0031,115700.0,115690.0,1.66452057]
[1758455815901,0.0031,115700.0,115690.0,0.88396057]
[1758455816100,0.0031,115700.0,115690.0,1.66448057]
[1758455817710,0.0031,115700.0,115690.0,0.88396057]
[1758455817912,0.0031,115700.0,115690.0,1.66448057]
[1758455818205,0.0031,115700.0,115690.0,0.88396057]
[1758455818410,0.02475,115700.0,115690.0,1.66448057]
[1758455821015,0.02475,115700.0,115690.0,1.5555781]
[1758455821611,0.0031,115700.0,115690.0,1.5555781]
[1758455824509,0.0031,115700.0,115690.0,0.8339781]
[1758455824813,0.0031,115700.0,115690.0,1.5555781]
[1758455839426,0.0031,115700.0,115690.0,1.66448127]
[1758455844540,0.0031,115700.0,115690.0,0.94288127]
[1758455844730,0.0031,115700.0,115690.0,1.66448127]
[1758455845237,0.0031,115700.0,115690.0,0.88396127]
[1758455845536,0.0031,115700.0,115690.0,1.66448127]
[1758455845939,0.0031,115700.0,115690.0,0.94288127]
[1758455846236,0.0031,115700.0,115690.0,1.66448127]
[1758455849439,0.0031,115700.0,115690.0,1.5555781]
[1758455851743,0.0031,115700.0,115690.0,0.7750581]
[1758455851943,0.0031,115700.0,115690.0,1.5555381]
[1758455853339,0.0031,115700.0,115690.0,0.7750581]
[1758455853640,0.0031,115700.0,115690.0,1.5555381]
[1758455856643,0.0031,115700.0,115690.0,1.66444791]
[1758455857745,0.0031,115700.0,115690.0,1.6643557]
[1758455862647,0.0031,115700.0,115690.0,1.55544589]
[1758455870055,0.0031,115700.0,115690.0,0.77496589]
[1758455870255,0.0031,115700.0,115690.0,1.55580589]
[1758455870848,0.0031,115700.0,115690.0,1.66471581]
[1758455874356,0.0031,115700.0,115690.0,0.94311581]
[1758455874556,0.02485,115700.0,115690.0,1.66471581]
[1758455877462,0.02485,115700.0,115690.0,0.88387581]
[1758455877661,0.02485,115700.0,115690.0,1.66467581]
[1758455879264,0.02485,115700.0,115690.0,1.55576589]
[1758455885769,0.02485,115700.0,115690.0,1.66467583]
[1758455889465,0.02485,115700.0,115690.0,1.55576589]
[1758455895878,0.02485,115700.0,115690.0,1.66467583]
[1758455899379,0.05866261,115700.0,115690.0,0.86629994]
[1758455899580,0.05866261,115700.0,115690.0,1.64677994]
[1758455899980,0.05866261,115700.0,115690.0,1.53787]
[1758455901483,0.05866261,115700.0,115690.0,1.61566365]
[1758455901884,0.05866261,115700.0,115690.0,1.53787]
[1758455907392,0.05866261,115700.0,115690.0,0.75739]
[1758455907592,0.05866261,115700.0,115690.0,1.64679789]
[1758455908492,0.05866261,115700.0,115690.0,0.86627789]
[1758455908788,0.05866261,115700.0,115690.0,1.64679789]
[1758455910090,0.05866261,115700.0,115690.0,0.86627789]
[1758455910291,0.05866261,115700.0,115690.0,1.64679789]
[1758455911591,0.05866261,115700.0,115690.0,1.72457323]
[1758455912090,0.05866261,115700.0,115690.0,1.61568534]
[1758455914493,0.05866261,115700.0,115690.0,0.83516534]
[1758455914693,0.05866261,115700.0,115690.0,1.61568534]
[1758455914896,0.05866261,115700.0,115690.0,0.83516534]
[1758455915082,0.05866261,115700.0,115690.0,1.61568534]
[1758455915594,0.05866261,115700.0,115690.0,0.83516534]
[1758455915794,0.05866261,115700.0,115690.0,1.61568534]
[1758455918395,0.05866261,115700.0,115690.0,1.64679789]
[1758455929208,0.05866261,115700.0,115690.0,0.86627789]
[1758455929400,0.05866261,115700.0,115690.0,1.64675789]
[1758455929806,0.05866261,115700.0,115690.0,0.86627789]
[1758455930006,0.30866261,115700.0,115690.0,0.84448789]
[1758455930196,0.30866261,115700.0,115690.0,0.81338271]
[1758455930403,0.30866261,115700.0,115690.0,0.7356]
[1758455931709,0.30866261,115700.0,115690.0,0.75735]
[1758455931912,0.30866261,115700.0,115690.0,0.7356]
[1758455943716,0.30866261,115700.0,115690.0,0.75831]
[1758455948714,0.30866261,115700.0,115690.0,0.39751]
[1758455969140,0.30866261,115700.0,115690.0,0.47529271]
[1758455975045,0.30866261,115700.0,115690.0,0.39751]
[1758455979249,0.05866261,115700.0,115690.0,0.39751]
[1758455990665,0.03862,115700.0,115690.0,0.39751]
[1758455995570,0.03862,115700.0,115690.0,0.47529271]
[1758456000774,0.02485,115700.0,115690.0,0.47529271]
[1758456001777,0.0031,115700.0,115690.0,0.48723271]
[1758456001978,0.0031,115700.0,115690.0,0.40945]
[1758456002475,0.02555,115700.0,115690.0,0.40945]
[1758456004877,0.03841,115700.0,115690.0,0.40945]
[1758456005681,0.03841,115700.0,115690.0,0.39751]
[1758456006581,0.03841,115700.0,115690.0,0.47529271]
[1758456010387,0.03841,115700.0,115690.0,0.11449271]
[1758456010587,0.03841,115700.0,115690.0,0.47529271]
[1758456023297,0.05872203,115700.0,115690.0,0.47529271]
[1758456026099,0.05872203,115700.0,115690.0,0.39751]
[1758456032612,0.05872203,115700.0,115690.0,0.47529271]
[1758456041510,0.05872203,115700.0,115690.0,0.39751]
[1758456047627,0.05872203,115700.0,115690.0,0.03671]
[1758456047822,0.05872203,115700.0,115690.0,0.39751]
[1758456048428,0.05872203,115700.0,115690.0,0.47529271]
[1758456060734,0.05872203,115700.0,115690.0,0.39751]
[1758456061937,0.05872203,115700.0,115690.0,0.03671]
[1758456062133,0.05872203,115700.0,115690.0,0.39751]
[1758456066439,0.05872203,115700.0,115690.0,0.47529271]
[1758456071348,0.05872203,115700.0,115690.0,0.11449271]
[1758456071546,0.05872203,115700.0,115690.0,0.47529271]
[1758456074653,0.04586203,115700.0,115690.0,0.39751]
[1758456079455,0.04586203,115700.0,115690.0,0.47529271]
[1758456085962,0.04586203,115700.0,115690.0,0.11449271]
[1758456086157,0.04586203,115700.0,115690.0,0.47529271]
[1758456086462,0.0031,115700.0,115690.0,0.64751]
[1758456086657,0.0031,115700.0,115690.0,0.75639789]
[1758456095556,0.0031,115700.0,115690.0,0.39559789]
[1758456095760,0.0031,115700.0,115690.0,1.11719789]
[1758456097671,0.0031,115700.0,115690.0,1.89743789]
[1758456097972,0.0031,115700.0,115690.0,1.11719789]
[1758456099268,0.0031,115700.0,115690.0,0.86719789]
[1758456116390,0.0031,115700.0,115690.0,0.75831]
[1758456119293,0.0031,115700.0,115690.0,0.86721332]
[1758456123100,0.0031,115700.0,115690.0,1.64741332]
[1758456129805,0.0031,115700.0,115690.0,1.53851]
[1758456131311,0.0031,115700.0,115690.0,0.75831]
[1758456131512,0.0031,115700.0,115690.0,1.53847]
[1758456138912,0.0031,115700.0,115690.0,0.81687]
[1758456139120,0.0031,115700.0,115690.0,1.53847]
[1758456139321,0.0031,115700.0,115690.0,1.64735684]
[1758456144426,0.0031,115700.0,115690.0,0.92575684]
[1758456144616,0.0031,115700.0,115690.0,1.64735684]
[1758456153932,0.0031,115700.0,115690.0,0.92575684]
[1758456154131,0.0031,115700.0,115690.0,1.64735684]
[1758456159934,0.0031,115700.0,115690.0,0.92575684]
[1758456160238,0.0031,115700.0,115690.0,1.64735684]
[1758456166440,0.0031,115700.0,115690.0,1.61625692]
[1758456169545,0.0031,115700.0,115690.0,1.53847]
[1758456171049,0.0011,115700.0,115690.0,1.53047]
[1758456171248,0.0031,115700.0,115690.0,1.54247]
[1758456172050,0.0031,115700.0,115690.0,1.62025702]
[1758456173751,0.0031,115700.0,115690.0,1.54247]
[1758456174152,0.0031,115700.0,115690.0,1.65135684]
[1758456192382,0.0031,115700.0,115690.0,1.90135684]
[1758456192583,0.0031,115700.0,115690.0,1.79247]
[1758456192885,0.0031,115700.0,115690.0,1.94800716]
[1758456193483,0.0031,115700.0,115690.0,1.16784716]
[1758456193784,0.0031,115700.0,115690.0,1.94804716]
[1758456195186,0.0031,115700.0,115690.0,1.16784716]
[1758456195386,0.0031,115700.0,115690.0,1.94804716]
[1758456196085,0.0031,115700.0,115690.0,1.79251]
[1758456199990,0.0031,115700.0,115690.0,1.01231]
[1758456200190,0.0031,115700.0,115690.0,1.79243]
[1758456200980,0.0031,115700.0,115690.0,1.01231]
[1758456201184,0.0031,115700.0,115690.0,1.79239]
[1758456205598,0.0031,115700.0,115690.0,1.01231]
[1758456205895,0.0031,115700.0,115690.0,1.79259]
[1758456206090,0.0031,115700.0,115690.0,1.87021621]
[1758456208300,0.0031,115700.0,115690.0,1.14861621]
[1758456208497,0.0031,115700.0,115690.0,1.87021621]
[1758456209596,0.0031,115700.0,115690.0,1.79255]
[1758456219307,0.0031,115700.0,115690.0,1.54255]
[1758456219610,0.0031,115700.0,115690.0,1.69808716]
[1758456222708,0.0031,115700.0,115690.0,1.54255]
[1758456229417,0.0031,115700.0,115690.0,0.82095]
[1758456229603,0.0031,115700.0,115690.0,1.54255]
[1758456232912,0.0031,115700.0,115690.0,0.82095]
[1758456233105,0.0031,115700.0,115690.0,1.54255]
[1758456236908,0.0031,115700.0,115690.0,0.82095]
[1758456237108,0.0031,115700.0,115690.0,1.54255]
[1758456243714,0.0031,115700.0,115690.0,1.65144619]
[1758456244520,0.0031,115700.0,115690.0,0.92984619]
[1758456244818,0.0031,115700.0,115690.0,1.65144619]
[1758456245620,0.0031,115700.0,115690.0,1.54255]
[1758456249424,0.0031,115700.0,115690.0,1.65144697]
[1758456249721,0.0031,115700.0,115690.0,1.54255]
[1758456251222,0.0031,115700.0,115690.0,1.65144731]
[1758456251627,0.0031,115700.0,115690.0,1.54255]
[1758456251926,0.0031,115700.0,115690.0,1.69808716]
[1758456255826,0.0031,115700.0,115690.0,1.54255]
[1758456256224,0.0031,115700.0,115690.0,1.65131044]
[1758456258230,0.0031,115700.0,115690.0,1.54255]
[1758456258427,0.0031,115700.0,115690.0,1.65129205]
[1758456259633,0.0031,115700.0,115690.0,1.54255]
[1758456262933,0.0031,115700.0,115690.0,1.69808716]
[1758456263530,0.0031,115700.0,115690.0,0.97648716]
[1758456263731,0.0031,115700.0,115690.0,1.69808716]
[1758456267043,0.0031,115700.0,115690.0,1.54255]
[1758456269441,0.0031,115700.0,115690.0,1.69808716]
[1758456270642,0.0031,115700.0,115690.0,0.97648716]
[1758456270936,0.0031,115700.0,115690.0,1.69808716]
[1758456274542,0.00058685,115700.0,115690.0,1.69808716]
[1758456275734,0.0682029,115720.0,115710.0,0.01135]
[1758456275939,0.0681029,115720.0,115710.0,1.53517]
[1758456276139,0.01314,115740.0,115710.0,1.6439037]
[1758456276339,0.03552,115740.0,115730.0,0.8215142]
[1758456276539,0.28552,115740.0,115730.0,0.8215142]
[1758456276745,0.03552,115740.0,115730.0,0.8215142]
[1758456277644,0.04052,115740.0,115730.0,0.8225142]
[1758456279051,0.04052,115740.0,115730.0,0.8235142]
[1758456280740,0.10970947,115740.0,115730.0,0.8235142]
[1758456280941,0.04052,115740.0,115730.0,0.8235142]
[1758456285454,0.11006864,115740.0,115730.0,0.8235142]
[1758456286656,0.11006864,115740.0,115730.0,0.74586]
[1758456286953,0.11006864,115740.0,115730.0,0.8545937]
[1758456288656,0.11006864,115740.0,115730.0,1.6345537]
[1758456289554,0.11006864,115740.0,115730.0,1.71218271]
[1758456289754,0.11006864,115740.0,115730.0,1.60344901]
[1758456291356,0.12985848,115740.0,115730.0,1.60344901]
[1758456294357,0.11681848,115740.0,115730.0,1.60344901]
[1758456294555,0.11691848,115740.0,115730.0,1.60344901]
[1758456299764,0.09443848,115740.0,115730.0,1.60344901]
[1758456302169,0.09443848,115740.0,115730.0,1.85344901]
[1758456303367,0.09443848,115740.0,115730.0,1.77582]
[1758456303566,0.09443848,115740.0,115730.0,1.8845537]
[1758456307976,0.09443848,115740.0,115730.0,1.1629537]
[1758456308268,0.09443848,115740.0,115730.0,1.8845537]
[1758456311372,0.09443848,115740.0,115730.0,1.1629537]
[1758456311573,0.09443848,115740.0,115730.0,1.8845537]
[1758456313466,0.09443848,115740.0,115730.0,1.77582]
[1758456323680,0.09443848,115740.0,115730.0,1.8845537]
[1758456324785,0.09443848,115740.0,115730.0,1.77582]
[1758456326689,0.09443848,115740.0,115730.0,1.88453446]
[1758456327490,0.09443848,115740.0,115730.0,1.77582]
[1758456327790,0.02488984,115740.0,115730.0,1.77582]
[1758456328795,0.02488984,115740.0,115730.0,1.88456334]
[1758456329199,0.02488984,115740.0,115730.0,1.63456334]
[1758456329402,0.02488984,115740.0,115730.0,1.65220866]
[1758456332302,0.02488984,115740.0,115730.0,1.54346532]
[1758456339412,0.02488984,115740.0,115730.0,1.65226453]
[1758456349412,0.02488984,115740.0,115730.0,1.54346532]
[1758456355722,0.02488984,115740.0,115730.0,1.69900248]
[1758456365333,0.02488984,115740.0,115730.0,1.54346532]
[1758456366133,0.02488984,115740.0,115730.0,1.69900248]
[1758456366932,0.02488984,115740.0,115730.0,1.54346532]
[1758456370939,0.02488984,115740.0,115730.0,0.82186532]
[1758456371141,0.02488984,115740.0,115730.0,1.54346532]
[1758456376135,0.02488984,115740.0,115730.0,1.65223501]
[1758456377237,0.02488984,115740.0,115730.0,1.54346532]
[1758456378341,0.02488984,115740.0,115730.0,1.69900248]
[1758456381945,0.0051,115740.0,115730.0,1.69900248]
[1758456389750,0.0051,115740.0,115730.0,1.54346532]
[1758456391053,0.0051,115740.0,115730.0,1.65212708]
[1758456395361,0.0051,115740.0,115730.0,0.93052708]
[1758456395552,0.0051,115740.0,115730.0,1.65212708]
[1758456397852,0.0051,115740.0,115730.0,1.54346532]
[1758456400064,0.0051,115740.0,115730.0,1.69900248]
[1758456404067,0.0051,115740.0,115730.0,1.54346532]
[1758456407170,0.0051,115740.0,115730.0,3.04346532]
[1758456412569,0.0051,115740.0,115730.0,2.32186532]
[1758456412771,0.0051,115740.0,115730.0,3.04346532]
[1758456413970,0.00096533,115740.0,115730.0,3.19900248]
[1758456417575,0.00096533,115740.0,115730.0,2.47740248]
[1758456417771,0.00096533,115740.0,115730.0,3.19900248]
[1758456421877,0.00017867,115740.0,115730.0,3.19900248]
[1758456422574,0.00017867,115740.0,115730.0,2.41904248]
[1758456422772,0.01398867,115740.0,115730.0,3.19876248]
[1758456423474,0.01398867,115740.0,115730.0,3.04322532]
[1758456428388,0.01398867,115740.0,115730.0,3.19876248]
[1758456429987,0.01398867,115740.0,115730.0,3.04322532]
[1758456439498,0.01398867,115740.0,115730.0,3.19876248]
[1758456446903,0.00017867,115740.0,115730.0,3.19876248]
[1758456450305,0.00017867,115740.0,115730.0,3.19843565]
[1758456454908,0.00017867,115740.0,115730.0,2.47683565]
[1758456455106,0.00017867,115740.0,115730.0,3.19843565]
[1758456460306,0.00017867,115740.0,115730.0,3.04289849]
[1758456470125,0.00017867,115740.0,115730.0,3.19843565]
[1758456470914,0.00017867,115740.0,115730.0,3.04289849]
[1758456472127,0.00017867,115740.0,115730.0,2.26317849]
[1758456472425,0.00017867,115740.0,115730.0,3.04285849]
[1758456472627,0.00017867,115740.0,115730.0,2.26317849]
[1758456472826,0.00017867,115740.0,115730.0,3.04285849]
[1758456480833,0.00017867,115740.0,115730.0,3.15160344]
[1758456482534,0.00017867,115740.0,115730.0,2.43000344]
[1758456482834,0.00017867,115740.0,115730.0,3.15160344]
[1758456483334,0.00017867,115740.0,115730.0,3.04285849]
[1758456485434,0.00017867,115740.0,115730.0,2.26317849]
[1758456485629,0.00017867,115740.0,115730.0,3.04285849]
[1758456489638,0.00017867,115740.0,115730.0,2.32125849]
[1758456489838,0.00017867,115740.0,115730.0,3.04285849]
[1758456492442,0.00017867,115740.0,115730.0,2.32125849]
[1758456492636,0.00017867,115740.0,115730.0,3.04285849]
[1758456494636,0.00017867,115740.0,115730.0,2.32125849]
[1758456494835,0.00017867,115740.0,115730.0,3.04285849]
[1758456495542,0.00017867,115740.0,115730.0,3.15160177]
[1758456496042,0.00017867,115740.0,115730.0,3.04285849]
[1758456498443,0.00017867,115740.0,115730.0,3.19839565]
[1758456510451,0.00017867,115740.0,115730.0,3.04285849]
[1758456520157,0.00017867,115740.0,115730.0,3.19839565]
[1758456524954,0.00017867,115740.0,115730.0,1.69839565]
[1758456525361,0.00017867,115740.0,115730.0,3.19839565]
[1758456530464,0.00017867,115740.0,115730.0,1.69839565]
[1758456530965,0.00017867,115740.0,115730.0,3.19839565]
[1758456534062,4.395e-05,115740.0,115730.0,3.19839565]
[1758456534568,0.06852046,115750.0,115730.0,3.19839565]
[1758456534774,0.04379882,115760.0,115750.0,0.02259]
[1758456535074,0.04369882,115760.0,115750.0,1.51347024]
[1758456536979,0.05169882,115760.0,115750.0,1.51447024]
[1758456537378,0.05469882,115760.0,115750.0,1.51447024]
[1758456537678,0.05069882,115760.0,115750.0,1.51447024]
[1758456538080,0.04769882,115760.0,115750.0,1.51447024]
[1758456538272,0.04869882,115760.0,115750.0,1.51447024]
[1758456538782,0.1185186,115760.0,115750.0,1.51447024]
[1758456538979,0.04023,115760.0,115750.0,1.76656106]
[1758456539381,0.04023,115760.0,115750.0,1.04496106]
[1758456539580,0.04023,115760.0,115750.0,1.76656106]
[1758456541083,0.04023,115760.0,115750.0,1.77791106]
[1758456541084,0.005,115760.0,115750.0,1.77791106]
[1758456541976,0.01344982,115760.0,115750.0,1.77791106]
[1758456542985,0.08320752,115760.0,115750.0,1.77791106]
[1758456544083,0.08320752,115760.0,115750.0,1.8555241]
[1758456544382,0.08320752,115760.0,115750.0,1.77791106]
[1758456545875,0.08320752,115760.0,115750.0,1.88662024]
[1758456549882,0.08320752,115760.0,115750.0,1.96422743]
[1758456550385,0.08320752,115760.0,115750.0,1.85551825]
[1758456557389,0.08320752,115760.0,115750.0,1.13391825]
[1758456557587,0.08330752,115760.0,115750.0,1.85551825]
[1758456558681,0.08330752,115760.0,115750.0,1.77791106]
[1758456560088,0.08330752,115760.0,115750.0,1.88662024]
[1758456567488,0.08330752,115760.0,115750.0,1.16502024]
[1758456567787,0.08330752,115760.0,115750.0,1.88662024]
[1758456568589,0.08330752,115760.0,115750.0,1.16502024]
[1758456568781,0.08330752,115760.0,115750.0,1.88662024]
[1758456569886,0.08330752,115760.0,115750.0,1.16502024]
[1758456570088,0.08330752,115760.0,115750.0,1.88662024]
[1758456580193,0.08330752,115760.0,115750.0,1.77791106]
[1758456581894,0.08330752,115760.0,115750.0,2.10532691]
[1758456582297,0.08330752,115760.0,115750.0,1.99661106]
[1758456594705,0.08330752,115760.0,115750.0,2.10535298]
[1758456597507,0.08330752,115760.0,115750.0,1.99661106]
[1758456599907,0.08330752,115760.0,115750.0,2.10538252]
[1758456601613,0.08330752,115760.0,115750.0,1.99661106]
[1758456603212,0.08330752,115760.0,115750.0,1.21697106]
[1758456603413,0.08330752,115760.0,115750.0,1.99641106]
[1758456605016,0.08330752,115760.0,115750.0,1.21697106]
[1758456605312,0.08330752,115760.0,115750.0,1.99641106]
[1758456610119,0.08330752,115760.0,115750.0,2.10518252]
[1758456611112,0.09712752,115760.0,115750.0,2.09383252]
[1758456611617,0.09712752,115760.0,115750.0,1.98506106]
[1758456614623,0.09712752,115760.0,115750.0,1.37223215]
[1758456614822,0.09712752,115760.0,115750.0,2.09383215]
[1758456615722,0.09712752,115760.0,115750.0,1.98506106]
[1758456616721,0.09712752,115760.0,115750.0,2.09383206]
[1758456617520,0.08330752,115760.0,115750.0,2.09383206]
[1758456623930,0.08330752,115760.0,115750.0,1.37223206]
[1758456624229,0.08330752,115760.0,115750.0,1.98506106]
[1758456625725,0.08330752,115760.0,115750.0,1.20562106]
[1758456626122,0.08330752,115760.0,115750.0,1.98502106]
[1758456626624,0.08330752,115760.0,115750.0,1.20562106]
[1758456626831,0.08330752,115760.0,115750.0,1.98502106]
[1758456635953,0.08330752,115760.0,115750.0,1.26342106]
[1758456636154,0.08330752,115760.0,115750.0,1.98502106]
[1758456638155,0.08330752,115760.0,115750.0,1.20562106]
[1758456638357,0.08330752,115760.0,115750.0,1.98502106]
[1758456643557,0.08330752,115760.0,115750.0,1.26342106]